[Event "New Zealand Rapid Championship"]
[Site "Wellington"]
[Date "2023.01.12"]
[Round "8.14"]
[White "Malcolm, Leo"]
[Black "Winter, Ryan"]
[Result "0-1"]
[TimeControl "25+5"]
[WhiteFideId "4317408"]
[BlackFideId "4306295"]
[WhiteElo "1801"]
[BlackElo "2117"]

1. e4 {[%clk 00:25:03]} {[%emt 00:00:07]} c6 {[%clk 00:25:06]} {[%emt
00:00:04]} 2. Bc4 {[%clk 00:24:57]} {[%emt 00:00:11]} d5 {[%clk 00:25:07]}
{[%emt 00:00:05]} 3. Bb3 {[%clk 00:25:01]} {[%emt 00:00:01]} Nf6 {[%clk
00:24:58]} {[%emt 00:00:13]} 4. e5 {[%clk 00:25:05]} {[%emt 00:00:01]} Ng8
{[%clk 00:24:55]} {[%emt 00:00:07]} 5. d4 {[%clk 00:24:46]} {[%emt 00:00:25]}
Bf5 {[%clk 00:24:56]} {[%emt 00:00:04]} 6. f4 {[%clk 00:24:14]} {[%emt
00:00:37]} e6 {[%clk 00:24:55]} {[%emt 00:00:06]} 7. Nf3 {[%clk 00:24:12]}
{[%emt 00:00:07]} Ne7 {[%clk 00:24:32]} {[%emt 00:00:28]} 8. Nh4 {[%clk
00:23:44]} {[%emt 00:00:33]} Be4 {[%clk 00:23:51]} {[%emt 00:00:47]} 9. Nd2
{[%clk 00:23:31]} {[%emt 00:00:17]} Nf5 {[%clk 00:23:45]} {[%emt 00:00:11]} 10.
Nxe4 {[%clk 00:22:45]} {[%emt 00:00:51]} Nxh4 {[%clk 00:23:38]} {[%emt
00:00:12]} 11. Qe2 {[%clk 00:21:58]} {[%emt 00:00:51]} dxe4 {[%clk 00:23:20]}
{[%emt 00:00:24]} 12. Qxe4 {[%clk 00:21:45]} {[%emt 00:00:18]} Nf5 {[%clk
00:23:05]} {[%emt 00:00:20]} 13. O-O {[%clk 00:21:32]} {[%emt 00:00:18]} Qxd4+
{[%clk 00:23:05]} {[%emt 00:00:05]} 14. Qxd4 {[%clk 00:21:34]} {[%emt
00:00:02]} Nxd4 {[%clk 00:23:09]} {[%emt 00:00:02]} 15. c3 {[%clk 00:21:30]}
{[%emt 00:00:09]} Nxb3 16. axb3 {[%clk 00:21:33]} Bc5+ {[%clk 00:22:57]} {[%emt
00:00:15]} 17. Kh1 {[%clk 00:21:36]} {[%emt 00:00:02]} Nd7 {[%clk 00:23:00]}
{[%emt 00:00:02]} 18. f5 {[%clk 00:21:35]} {[%emt 00:00:06]} O-O {[%clk
00:22:50]} {[%emt 00:00:15]} 19. f6 {[%clk 00:21:35]} {[%emt 00:00:06]} Nxe5
{[%clk 00:22:45]} {[%emt 00:00:10]} 20. fxg7 {[%clk 00:21:20]} {[%emt
00:00:20]} Kxg7 {[%clk 00:22:44]} {[%emt 00:00:07]} 21. Rf4 {[%clk 00:21:17]}
{[%emt 00:00:07]} Rad8 {[%clk 00:22:19]} {[%emt 00:00:30]} 22. h3 {[%clk
00:21:09]} {[%emt 00:00:13]} Rd1+ {[%clk 00:22:15]} {[%emt 00:00:10]} 23. Kh2
{[%clk 00:21:13]} Ng6 {[%clk 00:20:42]} {[%emt 00:01:38]} 24. Rg4 {[%clk
00:21:00]} {[%emt 00:00:18]} Be3 {[%clk 00:20:31]} {[%emt 00:00:16]} 25. Bxe3
{[%clk 00:20:55]} {[%emt 00:00:10]} Rxa1 {[%clk 00:20:34]} {[%emt 00:00:01]} 26.
Bd4+ {[%clk 00:20:51]} {[%emt 00:00:09]} f6 {[%clk 00:20:36]} {[%emt 00:00:03]}
27. h4 {[%clk 00:20:50]} {[%emt 00:00:06]} h5 {[%clk 00:20:36]} {[%emt
00:00:05]} 28. Rg3 {[%clk 00:20:39]} {[%emt 00:00:16]} Rd8 {[%clk 00:20:29]}
{[%emt 00:00:12]} 29. b4 {[%clk 00:20:32]} {[%emt 00:00:13]} e5 {[%clk
00:20:32]} {[%emt 00:00:02]} 30. Bg1 {[%clk 00:20:19]} {[%emt 00:00:18]} Rdd1
{[%clk 00:20:32]} {[%emt 00:00:05]} 31. Bb6 {[%clk 00:20:11]} {[%emt 00:00:13]}
Rh1# {[%clk 00:20:07]} {[%emt 00:00:02]} 0-1

[Event "New Zealand Rapid Championship"]
[Site "Wellington"]
[ePGN "0.1;DGT LiveChess/2.2.5"]
[Date "2023.01.12"]
[Round "9.1"]
[White "Shoker, Samy"]
[Black "Hague, Ben"]
[Result "1-0"]
[TimeControl "25+5"]
[WhiteTitle "GM"]
[BlackTitle "FM"]
[WhiteFideId "627143"]
[BlackFideId "405647"]
[WhiteElo "2440"]
[BlackElo "2410"]

1. Nf3 {[%clk 00:25:09]} d5 {[%clk 00:25:08]} {[%emt 00:00:03]} 2. g3 {[%clk
00:25:13]} {[%emt 00:00:02]} Nc6 {[%clk 00:25:08]} {[%emt 00:00:04]} 3. d3
{[%clk 00:25:17]} {[%emt 00:00:01]} e5 {[%clk 00:25:10]} {[%emt 00:00:03]} 4.
Bg2 {[%clk 00:25:21]} {[%emt 00:00:01]} Nf6 {[%clk 00:25:01]} {[%emt 00:00:13]}
5. O-O {[%clk 00:25:22]} {[%emt 00:00:05]} Bc5 {[%clk 00:24:35]} {[%emt
00:00:30]} 6. Nc3 {[%clk 00:24:27]} {[%emt 00:01:00]} O-O {[%clk 00:23:23]}
{[%emt 00:01:17]} 7. Nxe5 {[%clk 00:23:50]} {[%emt 00:00:43]} Bxf2+ {[%clk
00:20:47]} {[%emt 00:02:40]} 8. Rxf2 {[%clk 00:23:53]} {[%emt 00:00:02]} Nxe5
{[%clk 00:20:51]} {[%emt 00:00:02]} 9. d4 {[%clk 00:23:35]} {[%emt 00:00:23]}
Neg4 {[%clk 00:20:04]} {[%emt 00:00:51]} 10. Rf1 {[%clk 00:23:35]} {[%emt
00:00:05]} Re8 {[%clk 00:18:20]} {[%emt 00:01:49]} 11. Qd3 {[%clk 00:23:36]}
{[%emt 00:00:04]} c6 {[%clk 00:17:59]} {[%emt 00:00:26]} 12. h3 {[%clk
00:23:07]} {[%emt 00:00:33]} Nh6 {[%clk 00:18:03]} {[%emt 00:00:02]} 13. Bg5
{[%clk 00:23:06]} {[%emt 00:00:06]} Re6 {[%clk 00:17:13]} {[%emt 00:00:54]} 14.
e4 {[%clk 00:22:49]} {[%emt 00:00:22]} Qb6 {[%clk 00:16:15]} {[%emt 00:01:02]}
15. Bxf6 {[%clk 00:22:14]} {[%emt 00:00:41]} gxf6 {[%clk 00:15:33]} {[%emt
00:00:47]} 16. exd5 {[%clk 00:22:01]} {[%emt 00:00:17]} cxd5 {[%clk 00:15:31]}
{[%emt 00:00:07]} 17. Nxd5 {[%clk 00:21:50]} {[%emt 00:00:16]} Qd6 {[%clk
00:15:05]} {[%emt 00:00:31]} 18. c4 {[%clk 00:21:13]} {[%emt 00:00:42]} f5
{[%clk 00:14:34]} {[%emt 00:00:36]} 19. c5 {[%clk 00:20:44]} {[%emt 00:00:35]}
Qd8 {[%clk 00:14:30]} {[%emt 00:00:08]} 20. Nf4 {[%clk 00:20:39]} {[%emt
00:00:10]} Re8 {[%clk 00:14:06]} {[%emt 00:00:29]} 21. Rae1 {[%clk 00:19:30]}
{[%emt 00:01:14]} Be6 {[%clk 00:13:19]} {[%emt 00:00:52]} 22. Bxb7 {[%clk
00:18:42]} {[%emt 00:00:53]} Rb8 {[%clk 00:13:22]} {[%emt 00:00:02]} 23. Bc6
{[%clk 00:18:35]} {[%emt 00:00:11]} Bd7 {[%clk 00:13:04]} {[%emt 00:00:24]} 24.
Rxe8+ {[%clk 00:17:57]} {[%emt 00:00:43]} Qxe8 {[%clk 00:13:04]} {[%emt
00:00:05]} 25. Bxd7 {[%clk 00:17:14]} {[%emt 00:00:48]} Qxd7 {[%clk 00:13:08]}
26. b3 {[%clk 00:17:12]} {[%emt 00:00:08]} Qc6 {[%clk 00:12:35]} {[%emt
00:00:37]} 27. Qf3 {[%clk 00:17:00]} {[%emt 00:00:14]} Qf6 {[%clk 00:12:23]}
{[%emt 00:00:19]} 28. Qe3 {[%clk 00:16:46]} {[%emt 00:00:19]} Kf8 {[%clk
00:12:05]} {[%emt 00:00:24]} 29. Qe5 {[%clk 00:15:15]} {[%emt 00:01:35]} Qd8
{[%clk 00:11:40]} {[%emt 00:00:31]} 30. c6 {[%clk 00:14:55]} {[%emt 00:00:24]}
Rc8 {[%clk 00:11:38]} {[%emt 00:00:06]} 31. Rc1 {[%clk 00:14:14]} {[%emt
00:00:46]} Ng8 {[%clk 00:11:34]} {[%emt 00:00:10]} 32. d5 {[%clk 00:11:37]}
{[%emt 00:02:42]} Qb6+ {[%clk 00:11:29]} {[%emt 00:00:11]} 33. Kg2 {[%clk
00:11:18]} {[%emt 00:00:23]} Re8 {[%clk 00:11:28]} {[%emt 00:00:07]} 34. Qd6+
{[%clk 00:10:32]} {[%emt 00:00:48]} Kg7 {[%clk 00:11:30]} {[%emt 00:00:05]} 35.
Qc5 {[%clk 00:10:14]} {[%emt 00:00:22]} Qa6 {[%clk 00:11:03]} {[%emt 00:00:33]}
36. Qd4+ {[%clk 00:10:16]} {[%emt 00:00:02]} Kf8 {[%clk 00:10:40]} {[%emt
00:00:30]} 37. Rc2 {[%clk 00:09:54]} {[%emt 00:00:26]} Re1 {[%clk 00:10:35]}
{[%emt 00:00:10]} 38. Qf2 {[%clk 00:09:57]} {[%emt 00:00:01]} Rd1 {[%clk
00:09:14]} {[%emt 00:01:27]} 39. d6 {[%clk 00:08:33]} {[%emt 00:01:29]} Qb5
{[%clk 00:08:38]} {[%emt 00:00:41]} 40. c7 {[%clk 00:07:24]} {[%emt 00:01:15]}
Qb7+ {[%clk 00:08:39]} {[%emt 00:00:04]} 41. Qf3 {[%clk 00:07:27]} {[%emt
00:00:01]} Rg1+ {[%clk 00:08:29]} {[%emt 00:00:15]} 42. Kxg1 {[%clk 00:07:31]}
{[%emt 00:00:01]} Qxf3 {[%clk 00:08:32]} {[%emt 00:00:02]} 43. c8=Q+ {[%emt
00:00:04]} Kg7 {[%clk 00:08:36]} 44. Qc3+ {[%clk 00:07:37]} {[%emt 00:00:01]}
1-0

[Event "New Zealand Rapid Championship"]
[Site "Wellington"]
[Date "2023.01.12"]
[Round "9.2"]
[White "Dive, Russell J"]
[Black "Xie, Felix"]
[Result "1/2-1/2"]
[TimeControl "25+5"]
[WhiteTitle "IM"]
[BlackTitle "CM"]
[WhiteFideId "4300106"]
[BlackFideId "4308174"]
[WhiteElo "2367"]
[BlackElo "2232"]

1. Nf3 {[%clk 00:25:08]} d5 {[%clk 00:25:09]} {[%emt 00:00:02]} 2. g3 {[%clk
00:25:11]} {[%emt 00:00:02]} Nf6 {[%clk 00:25:13]} {[%emt 00:00:01]} 3. Bg2
{[%clk 00:25:15]} c6 {[%clk 00:25:17]} {[%emt 00:00:01]} 4. O-O {[%clk
00:25:12]} {[%emt 00:00:07]} Bg4 {[%clk 00:25:21]} {[%emt 00:00:01]} 5. Ne5
{[%clk 00:24:18]} {[%emt 00:01:00]} Bf5 {[%clk 00:25:23]} {[%emt 00:00:03]} 6.
d3 {[%clk 00:23:30]} {[%emt 00:00:52]} e6 {[%clk 00:25:23]} {[%emt 00:00:05]} 7.
Bg5 {[%clk 00:20:56]} {[%emt 00:02:39]} Bd6 {[%clk 00:25:16]} {[%emt 00:00:12]}
8. d4 {[%clk 00:20:24]} {[%emt 00:00:37]} h6 {[%clk 00:23:57]} {[%emt
00:01:25]} 9. Bf4 {[%clk 00:20:19]} {[%emt 00:00:09]} Qe7 {[%clk 00:23:53]}
{[%emt 00:00:09]} 10. Nd2 {[%clk 00:20:05]} {[%emt 00:00:19]} Nbd7 {[%clk
00:23:49]} {[%emt 00:00:10]} 11. Ndf3 {[%clk 00:20:01]} {[%emt 00:00:09]} Rc8
{[%clk 00:23:13]} {[%emt 00:00:41]} 12. c4 {[%clk 00:19:44]} {[%emt 00:00:22]}
dxc4 {[%clk 00:22:44]} {[%emt 00:00:34]} 13. Nxc4 {[%clk 00:19:44]} {[%emt
00:00:05]} Bxf4 {[%clk 00:22:48]} {[%emt 00:00:01]} 14. gxf4 {[%clk 00:19:47]}
{[%emt 00:00:01]} Be4 {[%clk 00:22:23]} {[%emt 00:00:30]} 15. Rc1 {[%clk
00:18:14]} {[%emt 00:01:38]} O-O {[%clk 00:21:51]} {[%emt 00:00:37]} 16. a3
{[%clk 00:17:49]} {[%emt 00:00:31]} c5 {[%clk 00:20:29]} {[%emt 00:01:27]} 17.
dxc5 {[%clk 00:17:22]} {[%emt 00:00:31]} Rxc5 {[%clk 00:19:53]} {[%emt
00:00:41]} 18. Qd6 {[%clk 00:15:45]} {[%emt 00:01:43]} Qxd6 {[%clk 00:19:20]}
{[%emt 00:00:38]} 19. Nxd6 {[%clk 00:15:47]} {[%emt 00:00:02]} Bd5 {[%emt
00:00:57]} 20. b4 {[%clk 00:15:20]} Rc6 {[%clk 00:17:37]} {[%emt 00:01:28]} 21.
Rxc6 {[%clk 00:15:02]} {[%emt 00:00:23]} bxc6 {[%clk 00:17:13]} {[%emt
00:00:29]} 22. Rc1 {[%clk 00:13:21]} {[%emt 00:01:46]} a5 {[%clk 00:12:29]}
{[%emt 00:04:49]} 23. bxa5 {[%clk 00:12:21]} {[%emt 00:01:05]} Ra8 {[%clk
00:12:31]} {[%emt 00:00:02]} 24. Ne5 {[%clk 00:12:13]} {[%emt 00:00:13]} Bxg2
{[%clk 00:09:48]} {[%emt 00:02:49]} 25. Kxg2 {[%clk 00:12:10]} {[%emt
00:00:07]} Rxa5 {[%clk 00:08:11]} {[%emt 00:01:43]} 26. Nxd7 {[%clk 00:09:17]}
{[%emt 00:02:58]} Nxd7 {[%clk 00:08:12]} {[%emt 00:00:04]} 27. Rxc6 {[%clk
00:09:20]} {[%emt 00:00:02]} Rxa3 {[%clk 00:05:30]} {[%emt 00:02:47]} 28. Rc7
{[%clk 00:09:23]} {[%emt 00:00:02]} Nf6 {[%clk 00:05:14]} {[%emt 00:00:20]} 29.
Rc8+ {[%clk 00:08:48]} {[%emt 00:00:40]} Kh7 {[%clk 00:05:19]} 30. Nxf7 {[%clk
00:08:47]} {[%emt 00:00:06]} Kg6 {[%clk 00:03:05]} {[%emt 00:02:19]} 31. Ne5+
{[%clk 00:06:32]} {[%emt 00:02:19]} Kf5 {[%clk 00:03:08]} {[%emt 00:00:02]} 32.
Nd3 {[%clk 00:06:04]} {[%emt 00:00:34]} g5 {[%clk 00:02:25]} {[%emt 00:00:48]}
33. Rc5+ {[%clk 00:05:24]} {[%emt 00:00:45]} Nd5 {[%clk 00:02:09]} {[%emt
00:00:21]} 34. fxg5 {[%clk 00:02:37]} {[%emt 00:02:53]} hxg5 {[%clk 00:02:13]}
{[%emt 00:00:01]} 35. h3 {[%clk 00:02:16]} {[%emt 00:00:26]} Rc3 {[%clk
00:01:50]} {[%emt 00:00:28]} 36. Rb5 {[%clk 00:01:44]} {[%emt 00:00:38]} Kf6
{[%clk 00:01:52]} {[%emt 00:00:03]} 37. Rb8 {[%clk 00:00:09]} {[%emt 00:01:39]}
Kg7 {[%clk 00:00:18]} {[%emt 00:01:38]} 38. Re8 {[%clk 00:00:07]} {[%emt
00:00:08]} Kf7 {[%clk 00:00:19]} {[%emt 00:00:05]} 39. Rh8 {[%clk 00:00:07]}
{[%emt 00:00:03]} Kg7 {[%clk 00:00:23]} {[%emt 00:00:02]} 40. Ra8 {[%clk
00:00:09]} {[%emt 00:00:03]} Rb3 {[%clk 00:00:14]} {[%emt 00:00:14]} 41. Ra4
{[%clk 00:00:09]} {[%emt 00:00:05]} Kf6 {[%clk 00:00:12]} {[%emt 00:00:06]} 42.
Re4 {[%clk 00:00:09]} {[%emt 00:00:04]} Rc3 {[%clk 00:00:10]} {[%emt 00:00:07]}
43. Ra4 {[%clk 00:00:07]} {[%emt 00:00:07]} Kg7 {[%clk 00:00:08]} {[%emt
00:00:07]} 44. Kf3 {[%clk 00:00:09]} {[%emt 00:00:03]} Nf4 {[%clk 00:00:10]}
{[%emt 00:00:04]} 45. Kg4 {[%clk 00:00:10]} {[%emt 00:00:04]} Nxd3 {[%clk
00:00:13]} {[%emt 00:00:02]} 46. exd3 {[%clk 00:00:12]} {[%emt 00:00:02]} Rxd3
{[%clk 00:00:18]} {[%emt 00:00:01]} 47. Ra5 {[%clk 00:00:13]} {[%emt 00:00:04]}
Kf6 {[%clk 00:00:17]} {[%emt 00:00:06]} 48. Rb5 {[%clk 00:00:10]} {[%emt
00:00:08]} Rd4+ {[%clk 00:00:21]} {[%emt 00:00:01]} 49. Kg3 {[%clk 00:00:13]}
{[%emt 00:00:01]} Rd3+ {[%clk 00:00:25]} 50. f3 {[%clk 00:00:16]} {[%emt
00:00:02]} Rd1 {[%clk 00:00:28]} {[%emt 00:00:03]} 51. Ra5 {[%clk 00:00:15]}
{[%emt 00:00:06]} Ke5 {[%emt 00:00:10]} 52. Kg2+ {[%emt 00:00:06]} 1/2-1/2

[Event "New Zealand Rapid Championship"]
[Site "Wellington"]
[Date "2023.01.12"]
[Round "9.3"]
[White "Winsley, Nicholas"]
[Black "Van Riemsdijk, Herman C."]
[Result "0-1"]
[TimeControl "25+5"]
[BlackTitle "IM"]
[WhiteFideId "4315146"]
[BlackFideId "2100053"]
[WhiteElo "1854"]
[BlackElo "2370"]

1. e4 {[%clk 00:25:08]} {[%emt 00:00:02]} e5 {[%clk 00:25:05]} {[%emt
00:00:06]} 2. Nf3 {[%clk 00:25:11]} {[%emt 00:00:02]} Nc6 {[%clk 00:25:07]}
{[%emt 00:00:03]} 3. Bc4 {[%clk 00:25:13]} {[%emt 00:00:02]} Nf6 {[%clk
00:25:06]} {[%emt 00:00:07]} 4. d3 {[%clk 00:24:52]} {[%emt 00:00:26]} Be7
{[%clk 00:24:58]} {[%emt 00:00:12]} 5. c3 {[%clk 00:24:03]} {[%emt 00:00:54]}
O-O {[%clk 00:24:49]} {[%emt 00:00:14]} 6. O-O {[%clk 00:24:03]} {[%emt
00:00:05]} d5 {[%clk 00:24:48]} {[%emt 00:00:06]} 7. exd5 {[%clk 00:24:04]}
{[%emt 00:00:04]} Nxd5 {[%clk 00:24:50]} {[%emt 00:00:03]} 8. Be3 {[%clk
00:22:47]} {[%emt 00:01:23]} Be6 {[%clk 00:24:23]} {[%emt 00:00:31]} 9. Bb3
{[%clk 00:20:49]} {[%emt 00:02:03]} Qd7 {[%clk 00:24:04]} {[%emt 00:00:24]} 10.
Bg5 {[%clk 00:18:46]} {[%emt 00:02:08]} f6 {[%clk 00:22:46]} {[%emt 00:01:23]}
11. Be3 {[%clk 00:18:09]} {[%emt 00:00:42]} Rad8 {[%clk 00:22:22]} {[%emt
00:00:29]} 12. d4 {[%clk 00:17:29]} {[%emt 00:00:45]} e4 {[%clk 00:21:58]}
{[%emt 00:00:29]} 13. Nfd2 {[%clk 00:17:04]} {[%emt 00:00:30]} f5 {[%clk
00:21:37]} {[%emt 00:00:26]} 14. c4 {[%clk 00:15:11]} {[%emt 00:01:59]} Nxe3
{[%clk 00:21:11]} {[%emt 00:00:31]} 15. fxe3 {[%clk 00:15:14]} {[%emt
00:00:01]} Nxd4 {[%clk 00:20:40]} {[%emt 00:00:36]} 16. exd4 {[%clk 00:14:55]}
{[%emt 00:00:25]} Qxd4+ {[%clk 00:20:38]} {[%emt 00:00:07]} 17. Kh1 {[%clk
00:14:57]} {[%emt 00:00:03]} Qxb2 {[%clk 00:20:09]} {[%emt 00:00:34]} 18. c5
{[%clk 00:13:45]} {[%emt 00:01:17]} Bf7 {[%clk 00:18:25]} {[%emt 00:01:48]} 19.
Bxf7+ {[%clk 00:12:34]} {[%emt 00:01:16]} Rxf7 {[%clk 00:18:22]} {[%emt
00:00:08]} 20. Qb3 {[%clk 00:12:12]} {[%emt 00:00:27]} Bf6 {[%clk 00:18:13]}
{[%emt 00:00:13]} 21. Qxb2 {[%clk 00:11:08]} {[%emt 00:01:10]} Bxb2 {[%clk
00:18:13]} {[%emt 00:00:06]} 22. Nb3 {[%clk 00:11:11]} {[%emt 00:00:02]} e3
{[%clk 00:17:38]} {[%emt 00:00:39]} 23. Re1 {[%clk 00:10:06]} {[%emt 00:01:11]}
f4 {[%clk 00:14:30]} {[%emt 00:03:13]} 24. Kg1 {[%clk 00:09:44]} {[%emt
00:00:27]} Rd5 {[%clk 00:13:33]} {[%emt 00:01:01]} 0-1

[Event "New Zealand Rapid Championship"]
[Site "Wellington"]
[Date "2023.01.12"]
[Round "9.4"]
[White "Ker, Anthony F"]
[Black "Archer, Ollie"]
[Result "1-0"]
[TimeControl "25+5"]
[WhiteTitle "IM"]
[WhiteFideId "4300084"]
[BlackFideId "4317262"]
[WhiteElo "2359"]
[BlackElo "1806"]

1. e4 {[%clk 00:25:09]} {[%emt 00:00:01]} c6 {[%clk 00:25:08]} {[%emt
00:00:02]} 2. Nf3 {[%clk 00:25:08]} {[%emt 00:00:05]} d5 {[%clk 00:25:11]}
{[%emt 00:00:02]} 3. exd5 {[%clk 00:25:07]} {[%emt 00:00:07]} cxd5 {[%clk
00:25:14]} {[%emt 00:00:02]} 4. Ne5 {[%clk 00:25:05]} {[%emt 00:00:07]} Nc6
{[%clk 00:25:13]} {[%emt 00:00:06]} 5. d4 {[%clk 00:24:35]} {[%emt 00:00:35]}
Nf6 {[%clk 00:24:56]} {[%emt 00:00:22]} 6. Bb5 {[%clk 00:24:34]} {[%emt
00:00:06]} Bd7 {[%clk 00:24:56]} {[%emt 00:00:04]} 7. Nxd7 {[%clk 00:24:35]}
{[%emt 00:00:05]} Qxd7 {[%clk 00:24:58]} {[%emt 00:00:02]} 8. c3 {[%clk
00:24:32]} {[%emt 00:00:08]} e6 {[%clk 00:24:58]} {[%emt 00:00:05]} 9. O-O
{[%clk 00:24:24]} {[%emt 00:00:14]} Bd6 {[%clk 00:24:54]} {[%emt 00:00:09]} 10.
Nd2 {[%clk 00:24:24]} {[%emt 00:00:05]} O-O {[%clk 00:24:50]} {[%emt 00:00:08]}
11. Re1 {[%clk 00:24:26]} {[%emt 00:00:04]} a6 {[%clk 00:24:41]} {[%emt
00:00:14]} 12. Bd3 {[%clk 00:24:27]} {[%emt 00:00:04]} b5 {[%clk 00:24:28]}
{[%emt 00:00:18]} 13. Nf3 {[%clk 00:23:57]} {[%emt 00:00:35]} h6 {[%clk
00:23:55]} {[%emt 00:00:37]} 14. Ne5 {[%clk 00:23:20]} {[%emt 00:00:41]} Qc7
{[%clk 00:23:45]} {[%emt 00:00:14]} 15. Nxc6 {[%clk 00:22:59]} {[%emt
00:00:27]} Qxc6 {[%clk 00:23:48]} {[%emt 00:00:02]} 16. Qf3 {[%clk 00:22:54]}
{[%emt 00:00:10]} Nd7 {[%clk 00:21:14]} {[%emt 00:02:38]} 17. g4 {[%clk
00:21:53]} {[%emt 00:01:06]} e5 {[%clk 00:20:48]} {[%emt 00:00:31]} 18. Bf5
{[%clk 00:20:04]} {[%emt 00:01:54]} Rfe8 {[%clk 00:19:18]} {[%emt 00:01:36]} 19.
Bd2 {[%clk 00:17:44]} {[%emt 00:02:25]} e4 {[%clk 00:18:50]} {[%emt 00:00:33]}
20. Qh3 {[%clk 00:17:34]} {[%emt 00:00:14]} Be7 {[%clk 00:17:52]} {[%emt
00:01:04]} 21. g5 {[%clk 00:17:06]} {[%emt 00:00:32]} Bxg5 {[%clk 00:17:47]}
{[%emt 00:00:10]} 22. Bxg5 {[%clk 00:17:01]} {[%emt 00:00:11]} hxg5 {[%clk
00:17:50]} {[%emt 00:00:01]} 23. Bxd7 {[%clk 00:16:57]} {[%emt 00:00:09]} 1-0